[Event "Klatovy Open-A 2024"]
[Site "Klatovy"]
[Date "2024.07.07"]
[Round "9.1"]
[White "Skypala, Ondrej"]
[Black "Straka, Vojtech"]
[Result "1/2-1/2"]
[ECO "A29"]
[WhiteElo "2223"]
[BlackElo "2436"]
[Annotator "TA"]
[PlyCount "87"]
[EventDate "2024.06.21"]
[EventType "swiss"]
[EventCountry "CZE"]
[SourceTitle "playchess.com"]
[Source "ChessBase"]
[SourceQuality "1"]
[TimeControl "40/7200:0"]

{[%evp 22,87,5,0,31,-5,-14,-37,0,0,0,0,0,0,0,-12,-17,-3,0,0,-10,-13,0,-36,23,22,16,13,82,74,91,100,93,94,95,97,102,68,85,69,57,33,27,33,34,21,50,43,45,-109,-150,-174,-33,-79,-93,-81,-78,-113,-47,-50,-43,-50,0,0,0,-60,0,0]} 1. c4 {[%emt 0:12:09]} e5 {[%emt 0:00:00]} 2. g3 {[%emt 0:00:00]} Nf6 {[%emt 0:00:00]} 3. Bg2 {[%emt 0:00:00]} d5 {[%emt 0:00:00]} 4. cxd5 {[%emt 0:00:00]} Nxd5 {[%emt 0:00:00]} 5. Nc3 {[%emt 0:00:00]} Nb6 {[%emt 0:00:00]} 6. Nf3 {[%emt 0:00:00]} Nc6 {[%emt 0:00:00]} 7. O-O {[%emt 0:00:00]} Be7 {[%emt 0:00:00]} 8. a3 {[%emt 0:00:00]} O-O {[%emt 0:00:00]} 9. d3 {[%emt 0:00:00]} Be6 {[%emt 0:00:00]} 10. b4 {[%emt 0:00:00][%cal Bb2b4,Bb4b5][%mdl 32]} a5 {[%emt 0:00:00]} 11. b5 {[%emt 0:00:00]} Nd4 {[%emt 0:00:00]} 12. Nd2 {[%emt 0:00:00]} Rb8 {[%emt 0:11:55]} 13. Rb1 {[%emt 0:14:47]} Qd7 {[%emt 0:03:58][%cal Oa5a4]} 14. e3 {[%emt 0:00:00]} Nf5 {[%emt 0:00:00] Black is slightly better.} (14... Bg4 $5 15. f3 Bf5 $11) 15. Nf3 {[%emt 0:07:38]} f6 {[%emt 0:17:39]} 16. Qc2 {[%emt 0:00:00]} Rfd8 {[%emt 0:02:01]} 17. Rd1 {[%emt 0:00:00]} Nd6 {[%emt 0:04:40]} 18. d4 {[%emt 0:16:44] [#]} e4 {[%emt 0:01:21]} 19. Nd2 {[%emt 0:01:33]} (19. Nxe4 $2 Nxe4 20. Ne5 (20. Qxe4 $2 Bf5 $19) 20... fxe5 $19) 19... f5 {[%emt 0:05:50]} 20. f3 {[%emt 0:08:33]} exf3 {[%emt 0:10:32]} 21. Bxf3 {[%emt 0:07:55]} Ndc4 {[%emt 0:08:25]} 22. Nb3 {[%emt 0:01:08]} Nxa3 {[%emt 0:03:27]} (22... Qe8 $15) 23. Bxa3 $11 {[%emt 0:00:00]} Bxa3 {[%emt 0:00:00]} 24. Nxa5 {[%emt 0:03:11]} Qe7 {[%emt 0:15:18]} (24... Nd5 $1 $11 {keeps the balance.} 25. Qb3 Be7 26. Nxd5 Bxd5 27. Bxd5+ Qxd5) 25. Nxb7 {[%emt 0:03:10]} Re8 {[%emt 0:01:10]} 26. Na5 {[%emt 0:00:14][%cal Bb7a5,Ba5c6,Bc6e5,Be5d3,Bd3f4][%mdl 32]} Qg5 {[%emt 0:00:00]} 27. Re1 {[%emt 0:00:57]} Kh8 {[%emt 0:08:15]} 28. Nc6 {[%emt 0:04:23]} Rbc8 {[%emt 0:00:00]} 29. Qf2 {[%emt 0:04:21] White is more active.} Bg8 {[%emt 0:04:04]} 30. Ne5 {[%emt 0:05:29]} Bd6 {[%emt 0:00:58]} 31. Nd3 {[%emt 0:00:28]} Nc4 {[%emt 0:00:02]} 32. Nd1 {[%emt 0:03:49]} Re7 {[%emt 0:04:11]} 33. Bc6 {[%emt 0:00:00]} Rf8 {[%emt 0:00:08][%cal Of5f4]} 34. Nf4 {[%emt 0:00:00]} Qh6 {[%emt 0:01:38]} 35. Nc3 $2 {[%emt 0:02:17]} (35. Nd5 $14 {stays ahead.} Re6 36. Nf4) 35... g5 $17 {[%emt 0:00:15]} 36. Nd3 {[%emt 0:05:02] [#]} Rg7 {[%emt 0:01:38]} (36... f4 $1 $19 {[%cal Rf4g3] Threatens to win with ...fxg3.} 37. Ne4 (37. exf4 gxf4 38. Rxe7 fxg3 $17) 37... fxe3 (37... Nxe3 38. Qb2 $15)) 37. Qe2 {[%emt 0:07:05]} (37. Qg2 $1 $15 {is more appropriate.}) 37... f4 {[%emt 0:00:11]} 38. Ne4 {[%emt 0:00:00]} Nxe3 {[%emt 0:02:01] And now ...Bc4 would win.} 39. Ndf2 {[%emt 0:00:24]} fxg3 {[%emt 0:03:42]} (39... Bc4 $17 40. Qd2 Rgf7 (40... fxg3 41. hxg3 Nf5 42. Qc3 $14)) 40. hxg3 $15 {[%emt 0:00:00]} Nf5 {[%emt 0:00:00][%csl LRd4,LRg3]} 41. Ng4 {[%emt 2:00:11]} Qh3 {[%emt 2:01:44]} 42. Ngf2 {[%emt 0:00:00] A dynamic duo of knights.} Qh6 {[%emt 0:00:00]} 43. Ng4 {[%emt 0:00:00]} Qh3 {[%emt 0:03:04]} (43... Qh5 $15 44. Ngf6 Qxe2 45. Rxe2 Nxd4 (45... Bxg3 46. Nxg8 Rgxg8 47. Nxg3 $11) (45... Nxg3 46. Nxg3 Bxg3 47. Nh5 $11)) 44. Ngf2 {[%emt 0:00:00] Weighted Error Value: White=0.18 (very precise) /Black=0.24 (precise) .  Mistake:       	White=2     	Black=5      Inaccurate:     	White=4     	Black=2      OK:         	White=13    	Black=14     Best:        	White=3     	Black=2} 1/2-1/2

[Event "Klatovy Open-A 2024"]
[Site "Klatovy"]
[Date "2024.07.07"]
[Round "9.3"]
[White "Slovak, Kilian"]
[Black "Janous, Marek"]
[Result "1-0"]
[ECO "B60"]
[WhiteElo "2271"]
[BlackElo "2129"]
[Annotator "TA"]
[PlyCount "51"]
[EventDate "2024.06.21"]
[EventType "swiss"]
[EventCountry "CZE"]
[SourceTitle "playchess.com"]
[Source "ChessBase"]
[SourceQuality "1"]
[TimeControl "40/7200:0"]

{[%evp 14,51,43,28,48,19,47,37,63,44,113,93,128,129,141,142,205,218,210,217,262,241,222,220,284,254,285,274,295,267,340,332,482,346,354,337,1044,1034,29994,29995]} 1. e4 {[%emt 0:08:09]} c5 {[%emt 0:00:00]} 2. Nf3 {[%emt 0:00:00][%cal Bg1f3,Bf3d4,Bd4f5][%mdl 32]} Nc6 {[%emt 0:00:00]} 3. d4 {[%emt 0:00:00]} cxd4 {[%emt 0:00:00]} 4. Nxd4 {[%emt 0:00:00]} Nf6 {[%emt 0:00:00]} 5. Nc3 {[%emt 0:00:00]} d6 {[%emt 0:00:00]} 6. Bg5 {[%emt 0:00:00]} Bd7 {[%emt 0:00:00]} 7. Bxf6 {[%emt 0:03:44]} gxf6 {[%emt 0:00:00]} 8. Nf5 {[%emt 0:02:44]} Rc8 {[%emt 0:10:17]} 9. Qd2 {[%emt 0:06:11]} a6 {[%emt 0:12:16]} 10. O-O-O {[%emt 0:01:21]} b5 {[%emt 0:03:43] White is slightly better.} 11. Kb1 {[%emt 0:08:15]} Na5 {[%emt 0:09:58]} ({Black should try} 11... b4 $14) 12. a3 {[%emt 0:01:01]} Nc4 {[%emt 0:05:09]} 13. Bxc4 {[%emt 0:00:43]} bxc4 {[%emt 0:02:29]} 14. Qd4 {[%emt 0:01:34] White has more active pieces.} Qa5 {[%emt 0:12:04]} (14... Be6 $16 {was necessary.} 15. f4 h5) 15. Nd5 $18 {[%emt 0:02:02] A dynamic duo of knights.} Qc5 {[%emt 0:01:24]} 16. Qc3 {[%emt 0:00:12]} h5 {[%emt 0:08:42]} 17. f4 {[%emt 0:00:49]} Rg8 {[%emt 0:19:23]} 18. g3 {[%emt 0:00:05]} Be6 {[%emt 0:12:04]} 19. Rhe1 {[%emt 0:02:04][%cal Bh1e1,Be1e4,Be4c4,Bc4c7][%mdl 32]} Bxd5 {[%emt 0:13:38]} 20. exd5 {[%emt 0:00:00]} e5 {[%emt 0:00:00]} 21. Re4 {[%emt 0:00:49] [#] Black must now prevent Rdd4.} Kd7 {[%emt 0:00:42]} 22. Ne3 {[%emt 0:01:36]} Bg7 {[%emt 0:00:08]} (22... Qb5 $142 23. Rf1 (23. Rxc4 Rxc4 24. Nxc4 Bg7 $18) (23. Nxc4 f5 $11) 23... Rg7 24. Rxc4 (24. fxe5 fxe5 25. Nxc4 Kd8 $18) 24... Rxc4 25. Nxc4 Ke7) 23. fxe5 {[%emt 0:03:23]} (23. Nxc4 $2 {loses.} f5 $19) 23... fxe5 {[%emt 0:01:10]} 24. Rf1 {[%emt 0:02:50][%cal Re4c4]} (24. Nxc4 f5 25. b4 Qb5 $17) 24... Ke7 $2 {[%emt 0:01:01] [#]} (24... f6 25. Rxc4 (25. Qxc4 Qxc4 26. Nxc4 Rc5 $18) 25... Qb6) 25. Rxc4 {[%emt 0:00:03]} Qxe3 {[%emt 0:02:18]} 26. Rc7+ {[%emt 1:12:25] Black did not feel at home in the position after the opening.   Weighted Error Value: White=0.18 (very precise) /Black=0.73.  Mistake:       	---       	Black=4      Inaccurate:     	White=1     	Black=4      OK:         	White=8     	Black=1      Best:        	White=1     	Black=1} 1-0

[Event "Klatovy Open-A 2024"]
[Site "Klatovy"]
[Date "2024.07.07"]
[Round "9.8"]
[White "Strnad, Jakub"]
[Black "Dvorak, Jan"]
[Result "1/2-1/2"]
[ECO "C18"]
[WhiteElo "1942"]
[BlackElo "2133"]
[Annotator "RC"]
[PlyCount "20"]
[EventDate "2024.06.21"]
[EventType "swiss"]
[EventCountry "CZE"]
[SourceTitle "playchess.com"]
[Source "ChessBase"]
[SourceQuality "1"]
[TimeControl "40/7200:0"]

1. e4 {[%emt 0:00:00]} e6 {[%emt 0:00:00]} 2. d4 {[%emt 0:00:00]} d5 {[%emt 0:00:00]} 3. Nc3 {[%emt 0:00:00]} Bb4 {[%emt 0:00:00]} 4. e5 {[%emt 0:00:00]} c5 {[%emt 0:00:00]} 5. a3 {[%emt 0:00:00]} Bxc3+ {[%emt 0:00:00]} 6. bxc3 {[%emt 0:00:00]} Qa5 {[%emt 0:00:00]} 7. Bd2 {[%emt 0:00:00]} Qa4 {[%emt 0:00:00]} 8. Qb1 {[%emt 0:00:00]} c4 {[%emt 0:00:00]} 9. Ne2 {[%emt 0:00:00]} Nc6 {[%emt 0:00:00]} 10. g3 {[%emt 2:00:00]} Bd7 {[%emt 2:00:00]} 1/2-1/2